[Event "Live Chess"]
[Site "Chess.com"]
[Date "2023.05.21"]
[Round "-"]
[White "Biranidun"]
[Black "ElectricFalcon"]
[Result "1-0"]
[WhiteElo "2551"]
[BlackElo "1080"]
[TimeControl "300"]
[EndTime "2:22:57 PDT"]
[Termination "Biranidun won by checkmate"]

1. e4 {[%clk 0:04:58.4]} 1... e5 {[%clk 0:04:56.7]} 2. Nf3 {[%clk 0:04:57.7]}
2... Nc6 {[%clk 0:04:56.1]} 3. Bc4 {[%clk 0:04:56.6]} 3... Nf6 {[%clk
0:04:55.3]} 4. Ng5 {[%clk 0:04:55.7]} 4... d5 {[%clk 0:04:52.6]} 5. exd5 {[%clk
0:04:55.6]} 5... Nxd5 {[%clk 0:04:51.1]} 6. Nxf7 {[%clk 0:04:54.2]} 6... Kxf7
{[%clk 0:04:49]} 7. Qf3+ {[%clk 0:04:53.7]} 7... Ke6 {[%clk 0:04:48.5]} 8. Nc3
{[%clk 0:04:52.6]} 8... Ne7 {[%clk 0:04:41]} 9. O-O {[%clk 0:04:51.1]} 9... g6
{[%clk 0:04:34.1]} 10. d4 {[%clk 0:04:49.7]} 10... Bg7 {[%clk 0:04:17.4]} 11.
Bg5 {[%clk 0:04:47.6]} 11... c6 {[%clk 0:04:05.4]} 12. Rfe1 {[%clk 0:04:27.3]}
12... Rf8 {[%clk 0:03:40.1]} 13. Qh3+ {[%clk 0:04:26.1]} 13... Kf7 {[%clk
0:03:34.9]} 14. Qh4 {[%clk 0:04:12.7]} 14... Kg8 {[%clk 0:03:10.9]} 15. Bxe7
{[%clk 0:04:11.4]} 15... Qe8 {[%clk 0:03:02.5]} 16. Nxd5 {[%clk 0:04:08.6]}
16... cxd5 {[%clk 0:03:00.3]} 17. Bxd5+ {[%clk 0:04:08.5]} 17... Kh8 {[%clk
0:02:53.3]} 18. Bxf8 {[%clk 0:04:07.9]} 18... Qxf8 {[%clk 0:02:52.7]} 19. dxe5
{[%clk 0:04:06.7]} 19... Bf5 {[%clk 0:02:46.5]} 20. Bxb7 {[%clk 0:04:02.2]}
20... Rb8 {[%clk 0:02:44.1]} 21. Rad1 {[%clk 0:04:00.8]} 21... Bxc2 {[%clk
0:02:36.8]} 22. Rd2 {[%clk 0:03:57.7]} 22... Bf5 {[%clk 0:02:20.5]} 23. Be4
{[%clk 0:03:54.2]} 23... Bxe4 {[%clk 0:02:17.2]} 24. Qxe4 {[%clk 0:03:52.5]}
24... Rb4 {[%clk 0:02:05.6]} 25. Rd8 {[%clk 0:03:46.1]} 25... Rxe4 {[%clk
0:01:57.8]} 26. Rxf8+ {[%clk 0:03:44.8]} 26... Bxf8 {[%clk 0:01:55.3]} 27. Rxe4
{[%clk 0:03:44.7]} 27... Bg7 {[%clk 0:01:41.6]} 28. e6 {[%clk 0:03:43.7]} 28...
Kg8 {[%clk 0:01:38]} 29. e7 {[%clk 0:03:43.6]} 29... Bxb2 {[%clk 0:01:32.9]} 30.
e8=Q+ {[%clk 0:03:43.5]} 30... Kg7 {[%clk 0:01:32.5]} 31. Qd7+ {[%clk
0:03:39.8]} 31... Kh6 {[%clk 0:01:30.8]} 32. Rh4+ {[%clk 0:03:36.6]} 32... Kg5
{[%clk 0:01:27.9]} 33. f4+ {[%clk 0:03:27]} 33... Kxh4 {[%clk 0:01:25.6]} 34.
Qh3# {[%clk 0:03:25.8]} 1-0

[Event "Live Chess"]
[Site "Chess.com"]
[Date "2023.05.21"]
[Round "-"]
[White "RichardABates"]
[Black "bedsdrout"]
[Result "1-0"]
[WhiteElo "2139"]
[BlackElo "339"]
[TimeControl "300"]
[EndTime "2:23:16 PDT"]
[Termination "RichardABates won by checkmate"]

1. d4 {[%clk 0:04:58.6]} 1... d5 {[%clk 0:04:37.2]} 2. c4 {[%clk 0:04:57.3]}
2... Nf6 {[%clk 0:04:16.9]} 3. cxd5 {[%clk 0:04:55.6]} 3... Nxd5 {[%clk
0:04:01.2]} 4. Nf3 {[%clk 0:04:54.4]} 4... Nc6 {[%clk 0:03:59]} 5. e4 {[%clk
0:04:52.8]} 5... Nf4 {[%clk 0:03:52]} 6. Bxf4 {[%clk 0:04:51]} 6... Bg4 {[%clk
0:03:35.1]} 7. Bb5 {[%clk 0:04:46.6]} 7... e6 {[%clk 0:03:17.9]} 8. Nc3 {[%clk
0:04:41.6]} 8... Bb4 {[%clk 0:03:12.4]} 9. Qa4 {[%clk 0:04:37.1]} 9... O-O
{[%clk 0:03:08.8]} 10. Bxc6 {[%clk 0:04:34.9]} 10... bxc6 {[%clk 0:03:06.5]} 11.
Qxb4 {[%clk 0:04:33.6]} 11... Rb8 {[%clk 0:03:00.8]} 12. Qc4 {[%clk 0:04:27.2]}
12... Rxb2 {[%clk 0:02:22.9]} 13. O-O {[%clk 0:04:25.8]} 13... Rb5 {[%clk
0:02:14.7]} 14. Nxb5 {[%clk 0:04:23.9]} 14... cxb5 {[%clk 0:02:09.5]} 15. Qxc7
{[%clk 0:04:22]} 15... Qxc7 {[%clk 0:02:03.3]} 16. Bxc7 {[%clk 0:04:20.3]} 16...
Bh5 {[%clk 0:01:54.9]} 17. Bd6 {[%clk 0:04:17.2]} 17... Rc8 {[%clk 0:01:50.2]}
18. Rac1 {[%clk 0:04:15.8]} 18... Rd8 {[%clk 0:01:44.5]} 19. Be7 {[%clk
0:04:09.6]} 19... Ra8 {[%clk 0:01:40.5]} 20. Rc7 {[%clk 0:04:07.8]} 20... h6
{[%clk 0:01:35]} 21. Rfc1 {[%clk 0:04:05.9]} 21... Bg4 {[%clk 0:01:26.2]} 22.
Ne5 {[%clk 0:04:03.7]} 22... h5 {[%clk 0:01:07.2]} 23. Rc8+ {[%clk 0:04:00.6]}
23... Rxc8 {[%clk 0:01:03.3]} 24. Rxc8+ {[%clk 0:03:59.2]} 24... Kh7 {[%clk
0:01:02.3]} 25. h3 {[%clk 0:03:57.1]} 25... Bd1 {[%clk 0:00:46.7]} 26. f4 {[%clk
0:03:56]} 26... h4 {[%clk 0:00:41.2]} 27. f5 {[%clk 0:03:54.4]} 27... a5 {[%clk
0:00:39.9]} 28. Nxf7 {[%clk 0:03:53]} 28... exf5 {[%clk 0:00:31.6]} 29. exf5
{[%clk 0:03:51.5]} 29... Bh5 {[%clk 0:00:18.2]} 30. Ng5+ {[%clk 0:03:49.2]}
30... Kh6 {[%clk 0:00:15.1]} 31. Rh8# {[%clk 0:03:49.1]} 1-0

[Event "Live Chess"]
[Site "Chess.com"]
[Date "2023.05.21"]
[Round "-"]
[White "Pablo_dmp"]
[Black "HoarseyHorsey"]
[Result "1-0"]
[WhiteElo "1855"]
[BlackElo "1442"]
[TimeControl "300"]
[EndTime "2:23:27 PDT"]
[Termination "Pablo_dmp won by resignation"]

1. e4 {[%clk 0:04:57.9]} 1... c5 {[%clk 0:04:58.1]} 2. a3 {[%clk 0:04:53.7]}
2... e6 {[%clk 0:04:52.8]} 3. b4 {[%clk 0:04:51.6]} 3... d5 {[%clk 0:04:51]} 4.
e5 {[%clk 0:04:39.7]} 4... a6 {[%clk 0:04:39.2]} 5. bxc5 {[%clk 0:04:37.5]} 5...
Bxc5 {[%clk 0:04:37.9]} 6. d4 {[%clk 0:04:35.8]} 6... Be7 {[%clk 0:04:35.5]} 7.
Nf3 {[%clk 0:04:31.4]} 7... Nc6 {[%clk 0:04:34.5]} 8. Bd3 {[%clk 0:04:27.6]}
8... f6 {[%clk 0:04:25.7]} 9. Qe2 {[%clk 0:04:23.6]} 9... fxe5 {[%clk
0:04:21.8]} 10. dxe5 {[%clk 0:04:20.5]} 10... Qc7 {[%clk 0:04:14.1]} 11. Nbd2
{[%clk 0:04:17]} 11... Bc5 {[%clk 0:04:08.1]} 12. Nb3 {[%clk 0:04:14.4]} 12...
Bb6 {[%clk 0:04:05.5]} 13. Be3 {[%clk 0:04:12.4]} 13... Nge7 {[%clk 0:03:56]}
14. O-O {[%clk 0:03:59.7]} 14... O-O {[%clk 0:03:54.4]} 15. Ng5 {[%clk
0:03:54.9]} 15... Bxe3 {[%clk 0:03:52.8]} 16. fxe3 {[%clk 0:03:49.4]} 16... Nf5
{[%clk 0:03:24.6]} 17. g4 {[%clk 0:03:39.6]} 17... Nxe5 {[%clk 0:03:09.1]} 18.
gxf5 {[%clk 0:03:36]} 18... Nxd3 {[%clk 0:03:08.1]} 19. cxd3 {[%clk 0:03:27.9]}
19... exf5 {[%clk 0:03:03.6]} 20. Qh5 {[%clk 0:03:25]} 20... h6 {[%clk
0:02:58.6]} 21. Nf3 {[%clk 0:03:15.8]} 21... Be6 {[%clk 0:02:39.9]} 22. Nbd4
{[%clk 0:03:07.1]} 22... Rf6 {[%clk 0:02:22]} 23. Nxe6 {[%clk 0:02:58.3]} 23...
Rxe6 {[%clk 0:02:20.7]} 24. Qxf5 {[%clk 0:02:54.1]} 24... Rxe3 {[%clk
0:02:08.6]} 25. Qxd5+ {[%clk 0:02:47.3]} 25... Kh8 {[%clk 0:02:04.3]} 26. Rae1
{[%clk 0:02:40.8]} 26... Rae8 {[%clk 0:01:54.8]} 27. Rxe3 {[%clk 0:02:31.5]}
27... Rxe3 {[%clk 0:01:54.7]} 28. d4 {[%clk 0:02:21.6]} 28... Qe7 {[%clk
0:01:30.6]} 29. Qc5 {[%clk 0:02:05.1]} 29... Qe4 {[%clk 0:01:17.6]} 30. Qf8+
{[%clk 0:01:49.9]} 30... Kh7 {[%clk 0:01:15]} 31. h3 {[%clk 0:01:38.7]} 31...
Re2 {[%clk 0:00:38.3]} 32. Rf2 {[%clk 0:01:28.5]} 32... Qg6+ {[%clk 0:00:33.2]}
33. Kf1 {[%clk 0:01:27]} 33... Re4 {[%clk 0:00:23.4]} 34. Ne5 {[%clk 0:01:19.3]}
34... Qh5 {[%clk 0:00:14.9]} 35. Qf5+ {[%clk 0:01:14.6]} 35... Qxf5 {[%clk
0:00:13.3]} 36. Rxf5 {[%clk 0:01:14.5]} 36... Rxd4 {[%clk 0:00:12.4]} 37. Rf7
{[%clk 0:01:11.8]} 37... Rd3 {[%clk 0:00:10.4]} 38. Nxd3 {[%clk 0:01:10.5]} 1-0

[Event "Live Chess"]
[Site "Chess.com"]
[Date "2023.05.21"]
[Round "-"]
[White "Delacorta"]
[Black "apl_trainer"]
[Result "0-1"]
[WhiteElo "1406"]
[BlackElo "1740"]
[TimeControl "300"]
[EndTime "2:23:29 PDT"]
[Termination "apl_trainer won by resignation"]

1. d4 {[%clk 0:04:57.8]} 1... Nf6 {[%clk 0:04:58.6]} 2. Nf3 {[%clk 0:04:56.8]}
2... c5 {[%clk 0:04:57.1]} 3. e3 {[%clk 0:04:54.7]} 3... g6 {[%clk 0:04:52.5]}
4. h4 {[%clk 0:04:46.9]} 4... Bg7 {[%clk 0:04:50.6]} 5. c3 {[%clk 0:04:25.8]}
5... b6 {[%clk 0:04:48.2]} 6. Be2 {[%clk 0:04:17.4]} 6... Bb7 {[%clk 0:04:46.5]}
7. Rg1 {[%clk 0:04:13.9]} 7... O-O {[%clk 0:04:39.5]} 8. g4 {[%clk 0:04:11.6]}
8... d5 {[%clk 0:04:32.3]} 9. h5 {[%clk 0:04:09.8]} 9... Nbd7 {[%clk 0:04:24.8]}
10. Nh4 {[%clk 0:03:42.7]} 10... e5 {[%clk 0:04:20.8]} 11. hxg6 {[%clk
0:03:33.9]} 11... fxg6 {[%clk 0:04:13]} 12. Qc2 {[%clk 0:03:15.2]} 12... Ne4
{[%clk 0:04:08.5]} 13. f3 {[%clk 0:02:57.8]} 13... Qxh4+ {[%clk 0:04:06]} 14.
Kd1 {[%clk 0:02:54]} 14... Nf2+ {[%clk 0:03:56.9]} 15. Kd2 {[%clk 0:02:53.2]}
15... exd4 {[%clk 0:03:43.9]} 16. cxd4 {[%clk 0:02:51.2]} 16... Rac8 {[%clk
0:03:36.3]} 17. Qb3 {[%clk 0:02:48.4]} 17... cxd4 {[%clk 0:03:29.2]} 18. Qb5
{[%clk 0:02:47.2]} 18... dxe3+ {[%clk 0:03:21.1]} 19. Kxe3 {[%clk 0:02:46.3]}
19... Bh6+ {[%clk 0:03:11]} 20. f4 {[%clk 0:02:40.9]} 20... Bxf4+ {[%clk
0:03:05.7]} 0-1

[Event "Live Chess"]
[Site "Chess.com"]
[Date "2023.05.21"]
[Round "-"]
[White "Berdgross"]
[Black "mliszewski"]
[Result "0-1"]
[WhiteElo "658"]
[BlackElo "1837"]
[TimeControl "300"]
[EndTime "2:23:47 PDT"]
[Termination "mliszewski won by resignation"]

1. d4 {[%clk 0:04:56.6]} 1... d5 {[%clk 0:04:58.7]} 2. e3 {[%clk 0:04:55.6]}
2... Nc6 {[%clk 0:04:55.9]} 3. Bb5 {[%clk 0:04:53.5]} 3... Nf6 {[%clk
0:04:53.8]} 4. Nf3 {[%clk 0:04:51.8]} 4... Bg4 {[%clk 0:04:52.8]} 5. h3 {[%clk
0:04:48.3]} 5... Bxf3 {[%clk 0:04:49.4]} 6. Qxf3 {[%clk 0:04:46.5]} 6... e6
{[%clk 0:04:49]} 7. Bxc6+ {[%clk 0:04:44.3]} 7... bxc6 {[%clk 0:04:47.7]} 8. Nc3
{[%clk 0:04:42.3]} 8... c5 {[%clk 0:04:46.6]} 9. dxc5 {[%clk 0:04:40.9]} 9...
Bxc5 {[%clk 0:04:45.2]} 10. O-O {[%clk 0:04:38.4]} 10... O-O {[%clk 0:04:43.9]}
11. a3 {[%clk 0:04:36.4]} 11... Bb6 {[%clk 0:04:42.6]} 12. Rd1 {[%clk
0:04:32.1]} 12... c5 {[%clk 0:04:41.7]} 13. b4 {[%clk 0:04:27.9]} 13... cxb4
{[%clk 0:04:38.2]} 14. axb4 {[%clk 0:04:26.6]} 14... Qc7 {[%clk 0:04:37.4]} 15.
Bb2 {[%clk 0:04:23.9]} 15... Rfd8 {[%clk 0:04:16.3]} 16. Nb5 {[%clk 0:04:15.2]}
16... Qxc2 {[%clk 0:04:08.8]} 17. Rab1 {[%clk 0:04:06.2]} 17... Qg6 {[%clk
0:04:01.3]} 18. Rbc1 {[%clk 0:03:49.6]} 18... a6 {[%clk 0:03:47.9]} 19. Nc3
{[%clk 0:03:45.5]} 19... Rac8 {[%clk 0:03:43.2]} 20. Na4 {[%clk 0:03:41]} 20...
Ba7 {[%clk 0:03:38.1]} 21. Rxc8 {[%clk 0:03:37.4]} 21... Rxc8 {[%clk 0:03:36.9]}
22. Rc1 {[%clk 0:03:33.5]} 22... Rxc1+ {[%clk 0:03:34.3]} 23. Bxc1 {[%clk
0:03:31.1]} 23... Qb1 {[%clk 0:03:33.1]} 24. Qd1 {[%clk 0:03:23.9]} 24... Qxb4
{[%clk 0:03:30]} 25. Qc2 {[%clk 0:03:22.2]} 25... h6 {[%clk 0:03:23]} 26. Qc8+
{[%clk 0:03:17.4]} 26... Kh7 {[%clk 0:03:21.5]} 27. Qc2+ {[%clk 0:03:13.5]}
27... Ne4 {[%clk 0:03:09.8]} 28. f3 {[%clk 0:03:09.7]} 28... Qe1+ {[%clk
0:03:07.8]} 29. Kh2 {[%clk 0:03:05]} 29... Qg3+ {[%clk 0:03:05.4]} 30. Kg1
{[%clk 0:03:02.3]} 30... Qf2+ {[%clk 0:03:01.1]} 31. Kh2 {[%clk 0:02:58.5]}
31... Bxe3 {[%clk 0:02:56.8]} 32. Bxe3 {[%clk 0:02:53.1]} 32... Qxe3 {[%clk
0:02:54.9]} 33. fxe4 {[%clk 0:02:51]} 33... dxe4 {[%clk 0:02:52.6]} 34. Nb2
{[%clk 0:02:39.4]} 34... Qf4+ {[%clk 0:02:49.4]} 35. Kg1 {[%clk 0:02:36.5]}
35... f5 {[%clk 0:02:46.5]} 36. Nc4 {[%clk 0:02:31.9]} 36... e3 {[%clk
0:02:43.7]} 37. Qc1 {[%clk 0:02:20.5]} 37... Qf2+ {[%clk 0:02:39.7]} 38. Kh2
{[%clk 0:02:16.2]} 38... e2 {[%clk 0:02:38.9]} 39. Nd2 {[%clk 0:02:12.1]} 39...
e1=Q {[%clk 0:02:36]} 40. Qxe1 {[%clk 0:02:07.5]} 40... Qxe1 {[%clk 0:02:35.4]}
0-1

[Event "Live Chess"]
[Site "Chess.com"]
[Date "2023.05.21"]
[Round "-"]
[White "FMOlexandrProhorov"]
[Black "Denz14"]
[Result "1-0"]
[WhiteElo "2172"]
[BlackElo "1046"]
[TimeControl "300"]
[EndTime "2:23:50 PDT"]
[Termination "FMOlexandrProhorov won by resignation"]

1. d4 {[%clk 0:04:58.5]} 1... Nf6 {[%clk 0:04:55.9]} 2. Nc3 {[%clk 0:04:58.4]}
2... d6 {[%clk 0:04:55.4]} 3. Bg5 {[%clk 0:04:57.3]} 3... g6 {[%clk 0:04:55.3]}
4. Bxf6 {[%clk 0:04:55.9]} 4... Bg7 {[%clk 0:04:55.2]} 5. Nf3 {[%clk 0:04:54]}
5... Bxf6 {[%clk 0:04:54]} 6. g3 {[%clk 0:04:53.2]} 6... O-O {[%clk 0:04:51.6]}
7. Bg2 {[%clk 0:04:52.8]} 7... Bg4 {[%clk 0:04:45.1]} 8. O-O {[%clk 0:04:52.7]}
8... Qd7 {[%clk 0:04:43.6]} 9. e3 {[%clk 0:04:46.5]} 9... Bh3 {[%clk 0:04:42]}
10. Qd3 {[%clk 0:04:45.8]} 10... Bxg2 {[%clk 0:04:40.4]} 11. Kxg2 {[%clk
0:04:45.7]} 11... Bg7 {[%clk 0:04:37]} 12. h4 {[%clk 0:04:45]} 12... h5 {[%clk
0:04:34.5]} 13. Ng5 {[%clk 0:04:42.2]} 13... Qf5 {[%clk 0:04:18.9]} 14. e4
{[%clk 0:04:40.5]} 14... Qg4 {[%clk 0:04:07.8]} 15. f4 {[%clk 0:04:39.4]} 15...
Nc6 {[%clk 0:03:56.3]} 16. Ne2 {[%clk 0:04:37.4]} 16... Nb4 {[%clk 0:03:54.6]}
17. Qd2 {[%clk 0:04:33]} 17... a5 {[%clk 0:03:52.1]} 18. c3 {[%clk 0:04:31.4]}
18... Nc6 {[%clk 0:03:45.8]} 19. Rae1 {[%clk 0:04:31.3]} 19... f6 {[%clk
0:03:43.2]} 20. Nh3 {[%clk 0:04:29.5]} 20... Qe6 {[%clk 0:03:33]} 21. d5 {[%clk
0:04:28.6]} 1-0

[Event "Live Chess"]
[Site "Chess.com"]
[Date "2023.05.21"]
[Round "-"]
[White "hunany_3"]
[Black "EdenHazard8"]
[Result "0-1"]
[WhiteElo "1730"]
[BlackElo "1978"]
[TimeControl "300"]
[EndTime "2:24:00 PDT"]
[Termination "EdenHazard8 won by resignation"]

1. e4 {[%clk 0:04:59.1]} 1... c6 {[%clk 0:04:59.2]} 2. d4 {[%clk 0:04:58]} 2...
d5 {[%clk 0:04:59.1]} 3. exd5 {[%clk 0:04:57.4]} 3... cxd5 {[%clk 0:04:59]} 4.
Bd3 {[%clk 0:04:56.9]} 4... Nc6 {[%clk 0:04:57.2]} 5. c3 {[%clk 0:04:55.9]} 5...
Qc7 {[%clk 0:04:56.1]} 6. Ne2 {[%clk 0:04:53]} 6... Bg4 {[%clk 0:04:54.9]} 7. f3
{[%clk 0:04:52]} 7... Bh5 {[%clk 0:04:53.4]} 8. Bf4 {[%clk 0:04:50.9]} 8... e5
{[%clk 0:04:52]} 9. dxe5 {[%clk 0:04:46.8]} 9... Nxe5 {[%clk 0:04:51.9]} 10. O-O
{[%clk 0:04:42.6]} 10... O-O-O {[%clk 0:04:46]} 11. Bf5+ {[%clk 0:04:25.2]}
11... Kb8 {[%clk 0:04:43.6]} 12. Qd4 {[%clk 0:04:23.7]} 12... Bc5 {[%clk
0:04:41.9]} 13. Bxe5 {[%clk 0:04:18.8]} 13... Bxd4+ {[%clk 0:04:20.5]} 14. cxd4
{[%clk 0:04:18.7]} 14... Rd6 {[%clk 0:04:19.5]} 15. Na3 {[%clk 0:04:07.3]} 15...
a6 {[%clk 0:04:15.1]} 16. Rac1 {[%clk 0:04:05.1]} 16... Qb6 {[%clk 0:04:13.9]}
17. Rc8+ {[%clk 0:04:00.1]} 17... Ka7 {[%clk 0:04:12.5]} 18. Bxd6 {[%clk
0:03:58.2]} 18... Qxd6 {[%clk 0:04:10.7]} 19. Rfc1 {[%clk 0:03:51.1]} 19... Bg6
{[%clk 0:04:08]} 20. Bh3 {[%clk 0:03:42.7]} 20... Qe7 {[%clk 0:03:57.7]} 21. Kf2
{[%clk 0:03:28]} 21... Qh4+ {[%clk 0:03:39.3]} 22. Kg1 {[%clk 0:03:13]} 22...
Qe7 {[%clk 0:03:20.3]} 23. Kf2 {[%clk 0:03:10.9]} 23... Qh4+ {[%clk 0:03:13.8]}
24. Kg1 {[%clk 0:03:09.4]} 24... Qg5 {[%clk 0:03:12.2]} 25. Kf2 {[%clk 0:03:03]}
25... Qd2 {[%clk 0:03:04.9]} 26. R1c2 {[%clk 0:02:55.9]} 26... Bxc2 {[%clk
0:03:02.4]} 27. Rxc2 {[%clk 0:02:54.3]} 27... Qa5 {[%clk 0:02:59.8]} 28. Rc5
{[%clk 0:02:48.8]} 28... Qb6 {[%clk 0:02:52.9]} 29. Nc3 {[%clk 0:02:26.7]} 29...
Nf6 {[%clk 0:02:47.3]} 30. Na4 {[%clk 0:02:24.1]} 30... Qb4 {[%clk 0:02:42.8]}
0-1

[Event "Live Chess"]
[Site "Chess.com"]
[Date "2023.05.21"]
[Round "-"]
[White "Biranidun"]
[Black "yeetpizza74"]
[Result "1-0"]
[WhiteElo "2551"]
[BlackElo "481"]
[TimeControl "300"]
[EndTime "2:24:05 PDT"]
[Termination "Biranidun won by checkmate"]

1. e4 {[%clk 0:04:59]} 1... c6 {[%clk 0:04:57.8]} 2. d4 {[%clk 0:04:57.6]} 2...
d5 {[%clk 0:04:56.5]} 3. e5 {[%clk 0:04:56.9]} 3... e6 {[%clk 0:04:54.4]} 4. Nf3
{[%clk 0:04:56]} 4... Ne7 {[%clk 0:04:50.4]} 5. Bd3 {[%clk 0:04:55.2]} 5... g6
{[%clk 0:04:47]} 6. h4 {[%clk 0:04:53.1]} 6... Bg7 {[%clk 0:04:44]} 7. h5 {[%clk
0:04:52.5]} 7... gxh5 {[%clk 0:04:42.1]} 8. Rxh5 {[%clk 0:04:47.9]} 8... O-O
{[%clk 0:04:37.4]} 9. Bxh7+ {[%clk 0:04:45.8]} 9... Kh8 {[%clk 0:04:34.9]} 10.
Qd3 {[%clk 0:04:42]} 10... Nf5 {[%clk 0:04:27.4]} 11. Bxf5+ {[%clk 0:04:40.9]}
11... Kg8 {[%clk 0:04:23]} 12. Bh7+ {[%clk 0:04:40.8]} 12... Kh8 {[%clk
0:04:20.7]} 13. Bg8+ {[%clk 0:04:40.7]} 13... Kxg8 {[%clk 0:04:18.5]} 14. Qh7#
{[%clk 0:04:40]} 1-0

[Event "Live Chess"]
[Site "Chess.com"]
[Date "2023.05.21"]
[Round "-"]
[White "Shepherds_Pie"]
[Black "JanMur7"]
[Result "1-0"]
[WhiteElo "1950"]
[BlackElo "1953"]
[TimeControl "300"]
[EndTime "2:24:23 PDT"]
[Termination "Shepherds_Pie won by resignation"]

1. c4 {[%clk 0:04:55.9]} 1... c5 {[%clk 0:04:58.6]} 2. Nc3 {[%clk 0:04:54.7]}
2... Nc6 {[%clk 0:04:57.6]} 3. g3 {[%clk 0:04:53.5]} 3... g6 {[%clk 0:04:56.7]}
4. Bg2 {[%clk 0:04:52.6]} 4... Bg7 {[%clk 0:04:56.1]} 5. a3 {[%clk 0:04:50.1]}
5... a6 {[%clk 0:04:54.6]} 6. Rb1 {[%clk 0:04:48.5]} 6... Rb8 {[%clk 0:04:53.8]}
7. Qa4 {[%clk 0:04:46.9]} 7... Nf6 {[%clk 0:04:46.2]} 8. b4 {[%clk 0:04:43.9]}
8... cxb4 {[%clk 0:04:43.2]} 9. axb4 {[%clk 0:04:42.4]} 9... O-O {[%clk
0:04:33.5]} 10. b5 {[%clk 0:04:40.8]} 10... axb5 {[%clk 0:04:30.7]} 11. cxb5
{[%clk 0:04:38.6]} 11... Ne5 {[%clk 0:04:29.6]} 12. Qa7 {[%clk 0:04:34.3]} 12...
Qc7 {[%clk 0:04:20.9]} 13. b6 {[%clk 0:04:31.2]} 13... Qd6 {[%clk 0:04:14.5]}
14. Ba3 {[%clk 0:04:26.2]} 1-0

[Event "Live Chess"]
[Site "Chess.com"]
[Date "2023.05.21"]
[Round "-"]
[White "SteveValentine83"]
[Black "lateforthesky"]
[Result "0-1"]
[WhiteElo "1532"]
[BlackElo "2120"]
[TimeControl "300"]
[EndTime "2:24:27 PDT"]
[Termination "lateforthesky won by resignation"]

1. e4 {[%clk 0:04:58.9]} 1... c5 {[%clk 0:04:58.6]} 2. c3 {[%clk 0:04:58]} 2...
d6 {[%clk 0:04:56.4]} 3. d4 {[%clk 0:04:57.4]} 3... Nf6 {[%clk 0:04:53.9]} 4.
Nf3 {[%clk 0:04:55.5]} 4... Nxe4 {[%clk 0:04:40.2]} 5. Bd3 {[%clk 0:04:54.5]}
5... Nf6 {[%clk 0:04:37.2]} 6. O-O {[%clk 0:04:53.6]} 6... cxd4 {[%clk
0:04:28.8]} 7. Nxd4 {[%clk 0:04:52.1]} 7... e6 {[%clk 0:04:25.9]} 8. Bg5 {[%clk
0:04:48.1]} 8... Be7 {[%clk 0:04:24.4]} 9. Re1 {[%clk 0:04:47.2]} 9... a6 {[%clk
0:04:23.1]} 10. a4 {[%clk 0:04:45.7]} 10... Nbd7 {[%clk 0:04:21.8]} 11. Nd2
{[%clk 0:04:41.7]} 11... h6 {[%clk 0:04:17.7]} 12. Bh4 {[%clk 0:04:38.2]} 12...
Ne5 {[%clk 0:04:15.8]} 13. Bc2 {[%clk 0:04:30.7]} 13... O-O {[%clk 0:04:12.3]}
14. N2f3 {[%clk 0:04:26.5]} 14... Nxf3+ {[%clk 0:04:09.4]} 15. Nxf3 {[%clk
0:04:25.8]} 15... Qc7 {[%clk 0:03:58.7]} 16. Qd3 {[%clk 0:04:18.8]} 16... g6
{[%clk 0:03:56.7]} 17. Bg3 {[%clk 0:03:58.9]} 17... Kg7 {[%clk 0:03:53.1]} 18.
Rad1 {[%clk 0:03:57.4]} 18... Rd8 {[%clk 0:03:51]} 19. Nh4 {[%clk 0:03:48.2]}
19... Qc5 {[%clk 0:03:13.9]} 20. Nxg6 {[%clk 0:03:08.9]} 20... fxg6 {[%clk
0:03:13.8]} 21. Qxg6+ {[%clk 0:03:08.3]} 21... Kf8 {[%clk 0:03:12.5]} 22. Qxh6+
{[%clk 0:03:03.7]} 22... Ke8 {[%clk 0:03:11.6]} 23. Bh4 {[%clk 0:02:35.8]} 23...
Ng8 {[%clk 0:02:48.2]} 24. Qh8 {[%clk 0:02:23.4]} 24... Kd7 {[%clk 0:02:45.9]}
25. Bxe7 {[%clk 0:02:11.3]} 25... Nxe7 {[%clk 0:02:42.8]} 26. Qh3 {[%clk
0:01:44.4]} 26... Kc7 {[%clk 0:02:34]} 27. Re3 {[%clk 0:01:21.3]} 27... Bd7
{[%clk 0:02:27.8]} 28. Rde1 {[%clk 0:01:13.3]} 28... Rh8 {[%clk 0:02:18]} 29.
Qg4 {[%clk 0:01:08.7]} 29... Rag8 {[%clk 0:02:14.3]} 30. Qd4 {[%clk 0:01:02.8]}
30... Qxd4 {[%clk 0:02:09.2]} 31. cxd4 {[%clk 0:01:02.7]} 31... Nd5 {[%clk
0:02:06.2]} 32. Rb3 {[%clk 0:00:56]} 32... Rg4 {[%clk 0:01:56.6]} 33. Bd1 {[%clk
0:00:45.1]} 33... Rxd4 {[%clk 0:01:52.3]} 34. Bf3 {[%clk 0:00:43.8]} 34... Re8
{[%clk 0:01:32.6]} 35. Rc1+ {[%clk 0:00:38.8]} 35... Bc6 {[%clk 0:01:28.7]} 36.
g3 {[%clk 0:00:26.4]} 36... Kd7 {[%clk 0:01:17.5]} 37. a5 {[%clk 0:00:20.3]}
37... Rf8 {[%clk 0:01:05.8]} 38. Bg2 {[%clk 0:00:18.1]} 38... Rd2 {[%clk
0:01:02.7]} 39. Rf3 {[%clk 0:00:14.8]} 39... Rxf3 {[%clk 0:00:59.6]} 40. Bxf3
{[%clk 0:00:14.7]} 40... Rxb2 {[%clk 0:00:57.5]} 0-1